fUSD/lending_fUSD_20240224
["ID","MTS","AMOUNT","RATE_DAILY","PERIOD"]
[315095970,1708810313477,-1232.51,0.00029589,2]
[315095971,1708810313487,-759.92,0.00029589,2]
[315095972,1708810313497,-530.65,0.00029589,2]
[315095973,1708810313506,-500.0,0.00029589,2]
[315095974,1708810313516,-500.0,0.00029589,2]
[315095975,1708810313525,-1623.45,0.00029589,2]
[315095976,1708810313534,-869.76,0.00029589,2]
[315095977,1708810313544,-2066.73,0.00029589,2]
[315095978,1708810313553,-500.0,0.00029589,2]
[315095979,1708810313563,-713.18,0.00029589,2]
[315095980,1708810313572,-2785.74,0.00029589,2]
[315095981,1708810313581,-500.0,0.00029589,2]
[315095982,1708810313590,-500.0,0.00029589,2]
[315095983,1708810313599,-1087.52,0.00029589,2]
[315095984,1708810313609,-769.16,0.00029589,2]
[315095985,1708810313618,-794.25,0.00029589,2]
[315095986,1708810313628,-5728.28,0.00029589,2]
[315095987,1708810313637,-1094.48,0.00029589,2]
[315095988,1708810313646,-500.0,0.00029589,2]
[315095989,1708810313655,-950.08,0.00029589,2]
[315095990,1708810313664,-500.0,0.00029589,2]
[315095991,1708810313675,-4776.88,0.00029589,2]
[315095992,1708810313686,-1104.7,0.00029589,2]
[315095993,1708810313695,-500.0,0.00029589,2]
[315095994,1708810313705,-787.59,0.00029589,2]
[315095995,1708810313714,-1722.68,0.00029589,2]
[315095996,1708810313723,-1079.64,0.00029589,2]
[315095997,1708810313733,-500.0,0.00029589,2]
[315095998,1708810313742,-500.0,0.00029589,2]
[315095999,1708810313752,-500.0,0.00029589,2]
[315096000,1708810313761,-500.0,0.00029589,2]
[315096001,1708810313771,-500.0,0.00029589,2]
[315096002,1708810313780,-545.78,0.00029589,2]
[315096003,1708810313789,-500.0,0.00029589,2]
[315096004,1708810313798,-870.54,0.00029589,2]
[315096005,1708810313808,-1404.99,0.00029589,2]
[315096006,1708810313817,-500.0,0.00029589,2]
[315096007,1708810313827,-500.0,0.00029589,2]
[315096008,1708810313837,-500.0,0.00029589,2]
[315096009,1708810313847,-540.96,0.00029589,2]
[315096010,1708810313857,-663.68,0.00029589,2]
[315096011,1708810313866,-518.41,0.00029589,2]
[315096012,1708810313876,-584.76,0.00029589,2]
[315096013,1708810313886,-500.0,0.00029589,2]
[315096014,1708810313895,-500.0,0.00029589,2]
[315096015,1708810313905,-1088.17,0.00029589,2]
[315096016,1708810313915,-500.0,0.00029589,2]
[315096017,1708810313924,-706.22,0.00029589,2]
[315096018,1708810313933,-703.51,0.00029589,2]
[315096019,1708810313942,-811.6,0.00029589,2]
[315096020,1708810313952,-653.11,0.00029589,2]
[315096021,1708810313961,-500.0,0.00029589,2]
[315096022,1708810313970,-1095.43,0.00029589,2]
[315096023,1708810313979,-500.0,0.00029589,2]
[315096024,1708810313988,-618.19,0.00029589,2]
[315096025,1708810313998,-2081.06,0.00029589,2]
[315096026,1708810314007,-1162.71,0.00029589,2]
[315096027,1708810314016,-943.46,0.00029589,2]
[315096028,1708810314025,-1409.4,0.00029589,2]
[315096029,1708810314034,-500.0,0.00029589,2]
[315096030,1708810314043,-500.0,0.00029589,2]
[315096031,1708810314052,-609.11528002,0.00029589,2]
[315096032,1708810314072,-500.0,0.00029589,2]
[315096033,1708810314082,-632.23,0.00029589,2]
[315096034,1708810314092,-550.90351473,0.00029589,2]
[315096035,1708810314102,-500.0,0.00029589,2]
[315096036,1708810314112,-500.0,0.00029589,2]
[315096037,1708810314122,-2679.66,0.00029626,2]
[315096038,1708810314132,-150.0,0.00029653,2]
[315096039,1708810314141,-150.0,0.00029666,2]
[315096040,1708810314151,-1329.60616541,0.00029681,2]
[315096041,1708810314161,-607.373675,0.00029691,2]
[315096042,1708810314171,-3114.967197,0.00029691,2]
[315096043,1708810314180,-250.703408,0.00029691,2]
[315096044,1708810314190,-2036.167304,0.00029691,2]
[315096045,1708810314200,-607.373676,0.00029691,2]
[315096046,1708810314212,-177.731214,0.00029691,2]
[315096047,1708810314223,-239.684552,0.00029691,2]
[315096048,1708810314233,-150.0,0.00029731,2]
[315096049,1708810314243,-159.21719904,0.0002978,4]
[315096050,1708810314252,-153.78621196,0.0002978,4]
[315096051,1708810314262,-1541.43165216,0.0002978,2]
[315096052,1708810314272,-5041.87986465,0.0002978,2]
[315096053,1708810314282,-5845.45168762,0.0002978,2]
[315096054,1708810314293,-179.70418286,0.0002978,2]
[315096055,1708810314303,-359.38522653,0.0002978,16]
[315096056,1708810314312,-557.00613331,0.0002978,2]
[315096057,1708810314322,-1067.72710181,0.0002978,2]
[315096058,1708810314332,-500.0,0.00029782,3]
[315096059,1708810314342,-500.0,0.00029791,3]
[315096060,1708810314352,-160.0,0.00029791,3]
[315096061,1708810314362,-5800.0,0.00029792,2]
[315096062,1708810314371,-150.0,0.000298,2]
[315096063,1708810314699,-200.0,0.000298,2]
[315096064,1708810314717,-5533.90446695,0.000298,3]
[315096065,1708810314726,-58000.0,0.000298,3]
[315096066,1708810314735,-5112.32061983,0.000298,3]
[315096067,1708810314745,-5800.0,0.000298,2]
[315096068,1708810314755,-5800.0,0.000298,2]
[315096069,1708810314764,-500.0,0.000298,3]
[315096070,1708810314773,-16000.0,0.000298,3]
[315096071,1708810314783,-200.0,0.000298,2]
[315096072,1708810314792,-5800.0,0.000298,2]
[315096073,1708810314802,-238.99965,0.000298,2]
[315096074,1708810314811,-1995.532972,0.000298,2]
[315096075,1708810314820,-160.0,0.000298,3]
[315096076,1708810314830,-21368.4627495,0.0002986,2]
[315096077,1708810314840,-17289.8552544,0.0002986,2]
[315096078,1708810314850,-13211.2477594,0.0002986,2]
[315096079,1708810314860,-9132.6402644,0.0002986,2]
[315096080,1708810314869,-5054.0327694,0.0002986,2]
[315096081,1708810314879,-899.6647573,0.0002986,2]
[315096082,1708810314889,-727.9453657,0.0002986,2]
[315096083,1708810314899,-556.2259741,0.0002986,2]
[315096084,1708810314908,-384.5065825,0.0002986,2]
[315096085,1708810314918,-212.787191,0.0002986,2]
[315096086,1708810314928,-816.1474484,0.0002986,2]
[315096087,1708810314937,-838.5821555,0.0002986,2]
[315096088,1708810314946,-861.0168625,0.0002986,2]
[315096089,1708810314956,-883.4515696,0.0002986,2]
[315096090,1708810314966,-905.8862766,0.0002986,2]
[315096091,1708810314975,-500.0,0.00029863,2]
[315096092,1708810314985,-500.0,0.00029863,2]
[315096093,1708810314995,-515.78353065,0.00029863,2]
[315096094,1708810315004,-500.0,0.00029863,2]
[315096095,1708810315014,-500.0,0.00029863,2]
[315096096,1708810315025,-500.0,0.00029863,2]
[315096097,1708810315034,-500.0,0.00029863,2]
[315096098,1708810315044,-500.0,0.00029863,2]
[315096099,1708810315054,-500.0,0.00029863,2]
[315096100,1708810315063,-500.0,0.00029863,2]
[315096101,1708810315073,-500.0,0.00029863,2]
[315096102,1708810315082,-500.0,0.00029863,2]
[315096103,1708810315091,-552.42785635,0.00029863,2]
[315096104,1708810315101,-500.0,0.00029863,2]
[315096105,1708810315110,-500.01429979,0.00029863,2]
[315096106,1708810315120,-500.0,0.00029863,2]
[315096107,1708810315129,-545.83,0.00029863,2]
[315096108,1708810315139,-500.0,0.00029863,2]
[315096109,1708810315149,-500.0,0.00029863,2]
[315096110,1708810315158,-500.0,0.00029863,2]
[315096111,1708810315167,-568.51865275,0.00029863,2]
[315096112,1708810315177,-500.0,0.00029863,2]
[315096113,1708810315187,-500.0,0.00029863,2]
[315096114,1708810315196,-500.0,0.00029863,2]
[315096115,1708810315205,-546.54546165,0.00029863,2]
[315096116,1708810315218,-500.0,0.00029863,2]
[315096117,1708810315228,-500.0,0.00029863,2]
[315096118,1708810315237,-500.0,0.00029863,2]
[315096119,1708810315247,-500.0,0.00029863,2]
[315096120,1708810315258,-500.0,0.00029863,2]
[315096121,1708810315267,-500.0,0.00029863,2]
[315096122,1708810315276,-595.95,0.00029863,2]
[315096123,1708810315286,-500.0,0.00029863,2]
[315096124,1708810315299,-322.66456878,0.00029863,2]
[315096125,1708810315308,-500.0,0.00029863,2]
[315096126,1708810315318,-500.0,0.00029863,2]
[315096127,1708810315327,-500.0,0.00029863,2]
[315096128,1708810315337,-533.74,0.00029863,2]
[315096129,1708810315347,-500.0,0.00029863,2]
[315096130,1708810315356,-500.0,0.00029863,2]
[315096131,1708810315366,-500.0,0.00029863,2]
[315096132,1708810315377,-500.0,0.00029863,2]
[315096133,1708810315386,-1377.86,0.00029863,2]
[315096134,1708810315395,-500.0,0.00029863,2]
[315096135,1708810315405,-500.0,0.00029863,2]
[315096136,1708810315415,-500.0,0.00029863,2]
[315096137,1708810315424,-504.41578376,0.00029863,2]
[315096138,1708810315433,-371.72556146,0.00029863,2]
[315096139,1708810315442,-500.0,0.00029863,2]
[315096140,1708810315452,-500.0,0.00029863,2]
[315096141,1708810315462,-500.0,0.00029863,2]
[315096142,1708810315472,-500.0,0.00029863,2]
[315096143,1708810315481,-500.0,0.00029863,2]
[315096144,1708810315491,-500.0,0.00029863,2]
[315096145,1708810315500,-500.0,0.00029863,2]
[315096146,1708810315510,-500.0,0.00029863,2]
[315096147,1708810315519,-500.0035458,0.00029863,2]
[315096148,1708810315528,-500.0,0.00029863,2]
[315096149,1708810315538,-500.0,0.00029863,2]
[315096150,1708810315547,-500.0,0.00029863,2]
[315096151,1708810315556,-563.43,0.00029863,2]
[315096152,1708810315566,-516.38033952,0.00029863,2]
[315096153,1708810315575,-545.23965669,0.00029863,2]
[315096154,1708810315584,-500.0,0.00029863,2]
[315096155,1708810315593,-500.0,0.00029863,2]
[315096156,1708810315602,-500.0,0.00029863,2]
[315096157,1708810315612,-500.0,0.00029863,2]
[315096158,1708810315622,-506.09,0.00029863,2]
[315096159,1708810315631,-500.0,0.00029863,2]
[315096160,1708810315640,-500.0,0.00029863,2]
[315096161,1708810315649,-500.0,0.00029863,2]
[315096162,1708810315659,-500.0,0.00029863,2]
[315096163,1708810315668,-500.0,0.00029863,2]
[315096164,1708810315678,-619.83,0.00029863,2]
[315096165,1708810315688,-500.0,0.00029863,2]
[315096166,1708810315697,-500.0,0.00029863,2]
[315096167,1708810315707,-492.77256343,0.00029863,2]
[315096168,1708810315717,-500.0,0.00029863,2]
[315096169,1708810315726,-500.0,0.00029863,2]
[315096170,1708810315735,-500.0,0.00029863,2]
[315096171,1708810315745,-500.0,0.00029863,2]
[315096172,1708810315755,-500.0,0.00029863,2]
[315096173,1708810315764,-500.0,0.00029863,2]
[315096174,1708810315773,-500.0,0.00029863,2]
[315096175,1708810315782,-500.0,0.00029863,2]
[315096176,1708810315792,-535.11,0.00029863,2]
[315096177,1708810315801,-552.26875546,0.00029863,2]
[315096178,1708810315811,-500.0,0.00029863,2]
[315096179,1708810315820,-500.0,0.00029863,2]
[315096180,1708810315830,-500.44,0.00029863,2]
[315096181,1708810315839,-500.0,0.00029863,2]
[315096182,1708810315848,-500.0,0.00029863,2]
[315096183,1708810315858,-500.0,0.00029863,2]
[315096184,1708810315867,-500.0,0.00029863,2]
[315096185,1708810315876,-500.0,0.00029863,2]
[315096186,1708810315885,-500.0,0.00029863,2]
[315096187,1708810315895,-720.75,0.00029863,2]
[315096188,1708810315904,-500.0,0.00029863,2]
[315096189,1708810315913,-500.0,0.00029863,2]
[315096190,1708810315923,-1156.62,0.00029863,2]
[315096191,1708810315932,-500.0,0.00029863,2]
[315096192,1708810315941,-510.16,0.00029863,2]
[315096193,1708810315950,-851.9,0.00029863,2]
[315096194,1708810315959,-500.0,0.00029863,2]
[315096195,1708810315968,-500.0,0.00029863,2]
[315096196,1708810315977,-500.0,0.00029863,2]
[315096197,1708810315986,-500.0,0.00029863,2]
[315096198,1708810315995,-675.27,0.00029863,2]
[315096199,1708810316005,-869.07,0.00029863,2]
[315096200,1708810316014,-665.27,0.00029863,2]
[315096201,1708810316023,-654.25,0.00029863,2]
[315096202,1708810316032,-531.18214105,0.00029863,2]
[315096203,1708810316041,-500.0,0.00029863,2]
[315096204,1708810316051,-500.0,0.00029863,2]
[315096205,1708810316061,-500.0,0.00029863,2]
[315096206,1708810316070,-500.0,0.00029863,2]
[315096207,1708810316079,-500.0,0.00029863,2]
[315096208,1708810316088,-500.0,0.00029863,2]
[315096209,1708810316098,-500.0,0.00029863,2]
[315096210,1708810316107,-500.0,0.00029863,2]
[315096211,1708810316116,-500.0,0.00029863,2]
[315096212,1708810316125,-500.0,0.00029863,2]
[315096213,1708810316135,-500.0,0.00029863,2]
[315096214,1708810316143,-500.0,0.00029863,2]
[315096215,1708810316153,-500.0,0.00029863,2]
[315096216,1708810316163,-500.0,0.00029863,2]
[315096217,1708810316172,-500.0,0.00029863,2]
[315096218,1708810316181,-500.0,0.00029863,2]
[315096219,1708810316191,-500.0,0.00029863,2]
[315096220,1708810316200,-647.49,0.00029863,2]
[315096221,1708810316211,-500.0,0.00029863,2]
[315096222,1708810316224,-500.0,0.00029863,2]
[315096223,1708810316234,-432.45698518,0.00029863,2]
[315096224,1708810316243,-500.0,0.00029863,2]
[315096225,1708810316255,-548.36,0.00029863,2]
[315096226,1708810316265,-500.0,0.00029863,2]
[315096227,1708810316274,-500.0,0.00029863,2]
[315096228,1708810316284,-500.0,0.00029863,2]
[315096229,1708810316297,-500.0,0.00029863,2]
[315096230,1708810316307,-542.55453818,0.00029863,2]
[315096231,1708810316317,-614.13,0.00029863,2]
[315096232,1708810316327,-500.0,0.00029863,2]
[315096233,1708810316337,-500.0,0.00029863,2]
[315096234,1708810316347,-227.62514114,0.00029863,2]
[315096235,1708810316357,-500.0,0.00029863,2]
[315096236,1708810316367,-500.0,0.00029863,2]
[315096237,1708810316377,-500.0,0.00029863,2]
[315096238,1708810316387,-585.45,0.00029863,2]
[315096239,1708810316397,-1917.18,0.00029863,2]
[315096240,1708810316406,-500.0,0.00029863,2]
[315096241,1708810316416,-614.72029203,0.00029863,2]
[315096242,1708810316426,-220.191554,0.00029863,2]
[315096243,1708810316435,-500.0,0.00029863,2]
[315096244,1708810316445,-500.0,0.00029863,2]
[315096245,1708810316455,-717.49,0.00029863,2]
[315096246,1708810316464,-507.49,0.00029863,2]
[315096247,1708810316473,-500.0,0.00029863,2]
[315096248,1708810316483,-500.0,0.00029863,2]
[315096249,1708810316493,-500.0,0.00029863,2]
[315096250,1708810316502,-533.35,0.00029863,2]
[315096251,1708810316511,-500.0,0.00029863,2]
[315096252,1708810316520,-655.31,0.00029863,2]
[315096253,1708810316530,-500.0,0.00029863,2]
[315096254,1708810316539,-528.13,0.00029863,2]
[315096255,1708810316549,-500.0,0.00029863,2]
[315096256,1708810316559,-500.0,0.00029863,2]
[315096257,1708810316568,-500.0,0.00029863,2]
[315096258,1708810316578,-500.0,0.00029863,2]
[315096259,1708810316587,-500.0,0.00029863,2]
[315096260,1708810316597,-556.62,0.00029863,2]
[315096261,1708810316607,-500.0,0.00029863,2]
[315096262,1708810316617,-500.0,0.00029863,2]
[315096263,1708810316626,-500.0,0.00029863,2]
[315096264,1708810316635,-500.0,0.00029863,2]
[315096265,1708810316644,-585.67,0.00029863,2]
[315096266,1708810316653,-500.0,0.00029863,2]
[315096267,1708810316663,-500.0,0.00029863,2]
[315096268,1708810316672,-500.0,0.00029863,2]
[315096269,1708810316681,-500.0,0.00029863,2]
[315096270,1708810316692,-500.0,0.00029863,2]
[315096271,1708810316702,-221.22525655,0.00029863,2]
[315096272,1708810316711,-564.93645272,0.00029863,2]
[315096273,1708810316721,-500.0,0.00029863,2]
[315096274,1708810316730,-500.0,0.00029863,2]
[315096275,1708810316739,-500.0,0.00029863,2]
[315096276,1708810316748,-500.0,0.00029863,2]
[315096277,1708810316758,-365.27911943,0.00029863,2]
[315096278,1708810316767,-500.0,0.00029863,2]
[315096279,1708810316776,-540.25,0.00029863,2]
[315096280,1708810316786,-500.0,0.00029863,2]
[315096281,1708810316795,-500.0,0.00029863,2]
[315096282,1708810316805,-642.35,0.00029863,2]
[315096283,1708810316816,-263.83510076,0.00029863,2]
[315096284,1708810316826,-500.0,0.00029863,2]
[315096285,1708810316836,-500.0,0.00029863,2]
[315096286,1708810316846,-2052.74,0.00029863,2]
[315096287,1708810316856,-538.32,0.00029863,2]
[315096288,1708810316867,-500.0,0.00029863,2]
[315096289,1708810316877,-392.47601131,0.00029863,2]
[315096290,1708810316887,-500.0,0.00029863,2]
[315096291,1708810316897,-500.0,0.00029863,2]
[315096292,1708810316907,-500.0,0.00029863,2]
[315096293,1708810316917,-500.0,0.00029863,2]
[315096294,1708810316927,-500.0,0.00029863,2]
[315096295,1708810316936,-500.0,0.00029863,2]
[315096296,1708810316946,-500.0,0.00029863,2]
[315096297,1708810316956,-500.0,0.00029863,2]
[315096298,1708810316965,-500.0,0.00029863,2]
[315096299,1708810316974,-500.0,0.00029863,2]
[315096300,1708810316984,-500.0,0.00029863,2]
[315096301,1708810316994,-500.0,0.00029863,2]
[315096302,1708810317004,-500.0,0.00029863,2]
[315096303,1708810317013,-500.0,0.00029863,2]
[315096304,1708810317022,-500.0,0.00029863,2]
[315096305,1708810317031,-500.0,0.00029863,2]
[315096306,1708810317107,-227.61506349,0.00029863,2]
[315096307,1708810317116,-500.0,0.00029863,2]
[315096308,1708810317126,-500.0,0.00029863,2]
[315096309,1708810317135,-500.0,0.00029863,2]
[315096310,1708810317144,-500.0,0.00029863,2]
[315096311,1708810317154,-500.0,0.00029863,2]
[315096312,1708810317163,-500.0,0.00029863,2]
[315096313,1708810317173,-500.0,0.00029863,2]
[315096314,1708810317182,-500.0,0.00029863,2]
[315096315,1708810317191,-786.79,0.00029863,2]
[315096316,1708810317201,-500.0,0.00029863,2]
[315096317,1708810317211,-500.0,0.00029863,2]
[315096318,1708810317224,-500.0,0.00029863,2]
[315096319,1708810317234,-500.0,0.00029863,2]
[315096320,1708810317243,-500.0,0.00029863,2]
[315096321,1708810317255,-627.35,0.00029863,2]
[315096322,1708810317264,-500.0,0.00029863,2]
[315096323,1708810317273,-500.0,0.00029863,2]
[315096324,1708810317283,-539.6,0.00029863,2]
[315096325,1708810317293,-500.0,0.00029863,2]
[315096326,1708810317303,-500.0,0.00029863,2]
[315096327,1708810317313,-500.0,0.00029863,2]
[315096328,1708810317322,-621.11599098,0.00029863,2]
[315096329,1708810317332,-500.0,0.00029863,2]
[315096330,1708810317341,-500.0,0.00029863,2]
[315096331,1708810317350,-500.0,0.00029863,2]
[315096332,1708810317360,-500.0,0.00029863,2]
[315096333,1708810317369,-500.0,0.00029863,2]
[315096334,1708810317379,-500.0,0.00029863,2]
[315096335,1708810317388,-163.24314866,0.00029863,2]
[315096336,1708810317398,-500.0,0.00029863,2]
[315096337,1708810317407,-500.0,0.00029863,2]
[315096338,1708810317417,-500.0,0.00029863,2]
[315096339,1708810317426,-500.0,0.00029863,2]
[315096340,1708810317435,-500.0,0.00029863,2]
[315096341,1708810317444,-500.0,0.00029863,2]
[315096342,1708810317453,-500.0,0.00029863,2]
[315096343,1708810317463,-500.0,0.00029863,2]
[315096344,1708810317472,-500.0,0.00029863,2]
[315096345,1708810317481,-500.0,0.00029863,2]
[315096346,1708810317490,-500.0,0.00029863,2]
[315096347,1708810317499,-521.65,0.00029863,2]
[315096348,1708810317509,-500.0,0.00029863,2]
[315096349,1708810317518,-340.82367288,0.00029863,2]
[315096350,1708810317527,-500.0,0.00029863,2]
[315096351,1708810317537,-500.0,0.00029863,2]
[315096352,1708810317546,-574.83,0.00029863,2]
[315096353,1708810317555,-500.0,0.00029863,2]
[315096354,1708810317564,-1865.83,0.00029863,2]
[315096355,1708810317573,-150.0,0.00029863,2]
[315096356,1708810317582,-719.34,0.00029863,2]
[315096357,1708810317591,-500.0,0.00029863,2]
[315096358,1708810317601,-500.0,0.00029863,2]
[315096359,1708810317610,-1620.46,0.00029863,2]
[315096360,1708810317620,-500.0,0.00029863,2]
[315096361,1708810317629,-236.79762916,0.00029863,2]
[315096362,1708810317638,-614.62587366,0.00029863,2]
[315096363,1708810317648,-589.1,0.00029863,2]
[315096364,1708810317657,-1249.24,0.00029863,2]
[315096365,1708810317666,-500.0,0.00029863,2]
[315096366,1708810317675,-4137.04,0.00029863,2]
[315096367,1708810317685,-500.0,0.00029863,2]
[315096368,1708810317695,-1988.0,0.00029863,2]
[315096369,1708810317705,-500.0,0.00029863,2]
[315096370,1708810317714,-1254.4,0.00029863,2]
[315096371,1708810317723,-967.56,0.00029863,2]
[315096372,1708810317733,-500.0,0.00029863,2]
[315096373,1708810317742,-965.13,0.00029863,2]
[315096374,1708810317751,-500.0,0.00029863,2]
[315096375,1708810317761,-3191.17,0.00029863,2]
[315096376,1708810317771,-500.0,0.00029863,2]
[315096377,1708810317780,-1128.66,0.00029863,2]
[315096378,1708810317789,-909.75,0.00029863,2]
[315096379,1708810317798,-500.0,0.00029863,2]
[315096380,1708810317807,-552.39,0.00029863,2]
[315096381,1708810317816,-593.85,0.00029863,2]
[315096382,1708810317826,-1113.17,0.00029863,2]
[315096383,1708810317835,-500.0,0.00029863,2]
[315096384,1708810317845,-4045.8,0.00029863,2]
[315096385,1708810317854,-1077.57,0.00029863,2]
[315096386,1708810317863,-500.0,0.00029863,2]
[315096387,1708810317872,-500.0,0.00029863,2]
[315096388,1708810317881,-500.0,0.00029863,2]
[315096389,1708810317890,-500.0,0.00029863,2]
[315096390,1708810317899,-500.0,0.00029863,2]
[315096391,1708810317909,-3078.01,0.00029863,2]
[315096392,1708810317918,-3378.46,0.00029863,2]
[315096393,1708810317928,-4414.52,0.00029863,2]
[315096394,1708810317937,-500.0,0.00029863,2]
[315096395,1708810317946,-3626.76,0.00029863,2]
[315096396,1708810317955,-500.0,0.00029863,2]
[315096397,1708810317964,-3257.12,0.00029863,2]
[315096398,1708810317974,-500.0,0.00029863,2]
[315096399,1708810317983,-539.18,0.00029863,2]
[315096400,1708810317993,-748.17,0.00029863,2]
[315096401,1708810318002,-5146.88,0.00029863,2]
[315096402,1708810318011,-552.55835119,0.00029863,2]
[315096403,1708810318021,-1570.48,0.00029863,2]
[315096404,1708810318030,-500.0,0.00029863,2]
[315096405,1708810318039,-500.0,0.00029863,2]
[315096406,1708810318048,-500.0,0.00029863,2]
[315096407,1708810318058,-500.0,0.00029863,2]
[315096408,1708810318067,-500.0,0.00029863,2]
[315096409,1708810318077,-500.0,0.00029863,2]
[315096410,1708810318086,-741.74,0.00029863,2]
[315096411,1708810318095,-599.02769077,0.00029863,2]
[315096412,1708810318104,-195.63252031,0.00029863,2]
[315096413,1708810318113,-500.0,0.00029863,2]
[315096414,1708810318122,-500.0,0.00029863,2]
[315096415,1708810318131,-720.57,0.00029863,2]
[315096416,1708810318140,-3824.68,0.00029863,2]
[315096417,1708810318149,-993.01,0.00029863,2]
[315096418,1708810318158,-500.0,0.00029863,2]
[315096419,1708810318167,-500.0,0.00029863,2]
[315096420,1708810318176,-500.0,0.00029863,2]
[315096421,1708810318185,-862.0,0.00029863,2]
[315096422,1708810318195,-962.36,0.00029863,2]
[315096423,1708810318204,-500.0,0.00029863,2]
[315096424,1708810318215,-677.57,0.00029863,2]
[315096425,1708810318226,-500.0,0.00029863,2]
[315096426,1708810318235,-1493.01,0.00029863,2]
[315096427,1708810318244,-661.48,0.00029863,2]
[315096428,1708810318254,-1197.16,0.00029863,2]
[315096429,1708810318264,-500.0,0.00029863,2]
[315096430,1708810318273,-500.0,0.00029863,2]
[315096431,1708810318282,-500.0,0.00029863,2]
[315096432,1708810318293,-500.0,0.00029863,2]
[315096433,1708810318302,-643.15,0.00029863,2]
[315096434,1708810318312,-1266.86,0.00029863,2]
[315096435,1708810318321,-1193.59,0.00029863,2]
[315096436,1708810318330,-624.93,0.00029863,2]
[315096437,1708810318340,-500.0,0.00029863,2]
[315096438,1708810318349,-610.59,0.00029863,2]
[315096439,1708810318358,-500.0,0.00029863,2]
[315096440,1708810318367,-500.0,0.00029863,2]
[315096441,1708810318376,-650.57,0.00029863,2]
[315096442,1708810318384,-617.61,0.00029863,2]
[315096443,1708810318394,-785.98,0.00029863,2]
[315096444,1708810318402,-688.7,0.00029863,2]
[315096445,1708810318412,-500.0,0.00029863,2]
[315096446,1708810318421,-3270.7,0.00029863,2]
[315096447,1708810318430,-509.37,0.00029863,2]
[315096448,1708810318439,-500.0,0.00029863,2]
[315096449,1708810318448,-6318.14,0.00029863,2]
[315096450,1708810318458,-1746.14,0.00029863,2]
[315096451,1708810318467,-500.0,0.00029863,2]
[315096452,1708810318477,-500.0,0.00029863,2]
[315096453,1708810318487,-500.0,0.00029863,2]
[315096454,1708810318496,-500.0,0.00029863,2]
[315096455,1708810318505,-308.29094087,0.00029863,2]
[315096456,1708810318515,-500.0,0.00029863,2]
[315096457,1708810318524,-755.98,0.00029863,2]
[315096458,1708810318533,-562.19,0.00029863,2]
[315096459,1708810318542,-500.0,0.00029863,2]
[315096460,1708810318552,-898.07,0.00029863,2]
[315096461,1708810318562,-630.58,0.00029863,2]
[315096462,1708810318572,-500.0,0.00029863,2]
[315096463,1708810318582,-557.45,0.00029863,2]
[315096464,1708810318591,-637.87,0.00029863,2]
[315096465,1708810318601,-500.0,0.00029863,2]
[315096466,1708810318611,-668.5,0.00029863,2]
[315096467,1708810318620,-500.0,0.00029863,2]
[315096468,1708810318629,-500.0,0.00029863,2]
[315096469,1708810318639,-669.18,0.00029863,2]